[Event "Super United Croatia GCT Rapid 2022"]
[Site "Zagreb"]
[Date "2022.07.20"]
[Round "2.2"]
[White "Van Foreest, Jorden"]
[Black "Dominguez Perez, Leinier"]
[Result "1-0"]
[ECO "A30"]
[WhiteElo "2678"]
[BlackElo "2754"]
[Annotator "TA"]
[PlyCount "75"]
[EventDate "2022.07.20"]
[EventType "tourn"]
[EventCountry "CRO"]
[SourceTitle "playchess.com"]
[Source "ChessBase"]
[SourceQuality "1"]
[TimeControl "5400+30"]

{[%evp 10,74,25,0,6,6,14,0,0,0,0,0,0,0,8,6,12,17,16,27,43,13,35,43,104,98,112,103,100,120,106,70,68,53,44,44,125,128,124,130,132,123,198,189,198,190,180,189,205,201,204,199,210,208,229,227,228,228,228,217,329,216,213,221,381,362,29999]} 1. c4 {[%emt 1:05:43]} c5 {[%emt 1:05:44]} 2. Nf3 {[%emt 0:00:25]} Nf6 {[%emt 0:00:22]} 3. g3 {[%emt 0:00:26]} Nc6 {[%emt 0:00:23]} 4. Bg2 {[%emt 0:00:27]} d5 {[%emt 0:00:43]} 5. cxd5 {[%emt 0:00:40]} Nxd5 {[%emt 0:00:22]} 6. d4 {[%emt 0:00:35]} cxd4 {[%emt 0:00:26] A30: Symmetrical English: Double Fianchetto and Hedgehog.} 7. Nxd4 {[%emt 0:00:25]} Ndb4 {[%emt 0:00:31] [#]} 8. a3 $146 {[%emt 0:00:47]} ({Predecessor:} 8. Nxc6 Qxd1+ 9. Kxd1 Nxc6 10. Bxc6+ bxc6 11. Be3 e5 12. f3 Be6 13. Ke1 a5 14. Kf2 Bb4 15. Rc1 Kd7 16. Nd2 Bxd2 17. Bxd2 Rhb8 18. Bc3 f6 19. f4 exf4 20. gxf4 {½-½ (39) Aronian,L (2765)-So,W (2776) Bucharest 2022}) 8... Qxd4 {[%emt 0:08:29] The position is equal.} 9. axb4 {[%emt 0:00:29]} Qxd1+ {[%emt 0:00:23]} 10. Kxd1 {[%emt 0:00:23]} Nxb4 {[%emt 0:00:23]} 11. Nc3 {[%emt 0:00:39]} Bf5 {[%emt 0:00:49]} 12. Bxb7 {[%emt 0:01:43]} Rd8+ {[%emt 0:00:23]} 13. Bd2 {[%emt 0:00:22]} e6 {[%emt 0:00:46]} 14. Kc1 {[%emt 0:01:34]} Bc5 {[%emt 0:04:13]} 15. Ra4 {[%emt 0:02:48]} (15. Ra5 $5 {[%cal Ra5c5]} Bxf2 16. Rb5 $11) 15... O-O {[%emt 0:01:06]} 16. Be3 {[%emt 0:03:05]} Be7 {[%emt 0:02:57]} (16... Bxe3+ $14 17. fxe3 a5) 17. Rxa7 $16 {[%emt 0:02:42]} Rd7 {[%emt 0:03:31] [#]} 18. Rd1 $1 {[%emt 0:01:36]} Rc7 {[%emt 0:00:29]} 19. Bf4 {[%emt 0:04:08]} Na2+ {[%emt 0:00:57]} 20. Rxa2 {[%emt 0:00:21]} (20. Kd2 {is more complex.} Nxc3 21. Bxc7 Nb5 22. Bb6) 20... Rxb7 {[%emt 0:00:20]} 21. Bd6 {[%emt 0:00:22]} Bxd6 {[%emt 0:00:22]} 22. Rxd6 {[%emt 0:00:22]} e5 {[%emt 0:00:20] Black is on the road to losing.} (22... Rfb8 $14) 23. Ra5 {[%emt 0:00:21]} f6 {[%emt 0:00:22]} 24. f4 {[%emt 0:02:35]} Rfb8 {[%emt 0:00:50]} 25. fxe5 {[%emt 0:01:54]} Rxb2 {[%emt 0:02:32]} (25... fxe5 $16 26. Rxe5 Bg6) 26. exf6 $18 {[%emt 0:00:43]} Bg6 {[%emt 0:00:51] [#] Threatens to win with ...Rc2+.} 27. Kd1 {[%emt 0:01:12]} gxf6 {[%emt 0:01:23]} 28. Rxf6 {[%emt 0:01:44]} Kg7 {[%emt 0:02:12]} 29. Rd6 {[%emt 0:01:21]} Rf8 {[%emt 0:02:32][%cal Rf8f1]} 30. Ke1 {[%emt 0:00:26] Prevents Rf1+.} Rc2 {[%emt 0:00:38]} 31. Ra7+ {[%emt 0:00:57]} Kh6 {[%emt 0:00:25]} 32. Nd5 {[%emt 0:00:40]} ({Don't do} 32. Nd1 Re8) 32... Rc1+ {[%emt 0:00:30]} 33. Kd2 {[%emt 0:00:21]} Rh1 {[%emt 0:00:33]} 34. Ne3 {[%emt 0:03:23] Strongly threatening h4.} Rb8 {[%emt 0:00:30]} (34... Rb1 {might work better.} 35. Rd5 Rf7 36. Rxf7 Bxf7) 35. Rd5 {[%emt 0:00:32][%cal Re3g4]} Rb4 {[%emt 0:00:30] Against Ng4+} 36. h4 {[%emt 0:00:55] Black must now prevent Rg5.} Rh3 $2 {[%emt 0:00:29]} (36... Rhb1 37. Re7 R4b2+ 38. Kc3 Rb3+ 39. Kd4 Rb4+ 40. Kc5 Ra4) 37. Rg5 {[%emt 0:00:35]} Bh5 {[%emt 0:00:32] Against Ng4+} (37... Rd4+ $18 38. Ke1 Rdxh4 39. gxh4 Rxe3) 38. Nf5# {[%emt 0:00:02] Weighted Error Value: White=0.09 (flawless) /Black=0.33} 1-0

[Event "Super United Croatia GCT Rapid 2022"]
[Site "Zagreb"]
[Date "2022.07.20"]
[Round "2.3"]
[White "Saric, Ivan"]
[Black "Mamedyarov, Shakhriyar"]
[Result "1/2-1/2"]
[ECO "C83"]
[WhiteElo "2680"]
[BlackElo "2759"]
[Annotator "TA"]
[PlyCount "122"]
[EventDate "2022.07.20"]
[EventType "tourn"]
[EventCountry "CRO"]
[SourceTitle "playchess.com"]
[Source "ChessBase"]
[SourceQuality "1"]
[TimeControl "5400+30"]

{[%evp 21,122,29,25,33,47,44,36,55,36,43,55,20,25,23,18,22,43,18,18,26,12,30,16,22,35,0,0,16,45,42,27,7,7,7,47,31,28,0,0,0,6,0,0,0,0,0,11,0,172,173,172,153,258,245,231,242,300,297,417,417,400,323,470,466,454,249,649,675,484,351,789,539,1333,1248,12831,11779,12833,12834,12833,0,0,0,0,0,0,0,0,0,0,0,0,0,0,0,0,0,0,0,0,0,0,0,0]} 1. e4 {[%emt 1:05:41] Stohl,I} e5 {[%emt 1:05:42]} 2. Nf3 {[%emt 0:00:21]} Nc6 {[%emt 0:00:21]} 3. Bb5 {[%emt 0:00:22]} a6 {[%emt 0:00:23]} 4. Ba4 {[%emt 0:00:21]} Nf6 {[%emt 0:00:21]} 5. O-O {[%emt 0:00:31]} Nxe4 {[%emt 0:00:23]} 6. d4 {[%emt 0:00:22]} b5 {[%emt 0:00:21]} 7. Bb3 {[%emt 0:00:20]} d5 {[%emt 0:00:21][%cal Bd7d5,Bd5d4,Bd4d3][%mdl 32]} 8. dxe5 {[%emt 0:00:22]} Be6 {[%emt 0:00:21]} 9. c3 {[%emt 0:00:31]} Be7 {[%emt 0:00:25]} 10. Nbd2 {[%emt 0:01:12]} Nc5 {[%emt 0:00:22]} 11. Bc2 {[%emt 0:00:21]} d4 {[%emt 0:00:20]} 12. Nb3 {[%emt 0:00:26] C83: Open Ruy Lopez: 9 c3 Be7.} d3 {[%emt 0:00:22]} 13. Bb1 {[%emt 0:00:22]} Nxb3 {[%emt 0:00:22]} 14. axb3 {[%emt 0:00:22] White is slightly better.} Bf5 {[%emt 0:00:21]} 15. Re1 {[%emt 0:01:15]} O-O {[%emt 0:00:25]} 16. Be3 {[%emt 0:01:07]} Qd5 {[%emt 0:00:21]} 17. Bd4 {[%emt 0:00:52]} Rfd8 {[%emt 0:00:30]} 18. h4 {[%emt 0:00:50]} Bg6 {[%emt 0:03:11][%cal Rc6d4] [#]} 19. Bxd3 $146 {[%emt 0:02:22]} ({Predecessor:} 19. b4 d2 20. Qxd2 Bxb1 21. Raxb1 Bxb4 22. Qf4 Be7 23. e6 fxe6 24. Qg4 Nxd4 25. Nxd4 {1-0 (35) Caruana,F (2804)-Hou,Y (2663) Shamkir 2016 CBM 173 [Stohl,I]}) 19... Bxd3 {[%emt 0:00:22]} 20. Qxd3 {[%emt 0:00:21]} Qxb3 {[%emt 0:00:21]} 21. e6 {[%emt 0:00:52]} fxe6 {[%emt 0:00:23]} 22. Qe4 {[%emt 0:00:38][%csl LRc6,LRe6]} Qc4 {[%emt 0:01:46]} 23. Qg4 {[%emt 0:03:37][%csl Gd4][%cal Rg4g7]} Nxd4 {[%emt 0:01:18]} 24. cxd4 {[%emt 0:00:28] aiming for Rac1.} Bf6 {[%emt 0:00:25][%cal Rf6d4]} 25. Rac1 {[%emt 0:00:43][%cal Ba1c1,Bc1c7,Bc7c6][%mdl 32]} Qd5 {[%emt 0:01:05][%cal Rf6d4]} 26. Rxc7 {[%emt 0:01:06]} Qf5 $132 {[%emt 0:00:28][%mdl 2048] Black is fighting back} 27. Qg3 {[%emt 0:00:57]} h5 {[%emt 0:05:36]} 28. Rc6 {[%emt 0:05:11]} Bxd4 {[%emt 0:01:08]} 29. Nxd4 {[%emt 0:00:55]} Rxd4 {[%emt 0:00:22]} 30. Rcxe6 {[%emt 0:00:41]} Rf8 $1 {[%emt 0:01:45]} 31. Rg6 {[%emt 0:02:09]} Rg4 {[%emt 0:02:40]} 32. Rxg4 {[%emt 0:00:24]} hxg4 $11 {[%emt 0:00:30][%mdl 4096] Endgame KQR-KQR} 33. Qe3 {[%emt 0:02:39]} Kh8 {[%emt 0:02:58]} 34. Qd4 {[%emt 0:01:19]} Rc8 $2 {[%emt 0:01:51]} (34... Qf6 $11 35. Qxf6 Rxf6) 35. Re5 $1 $18 {[%emt 0:00:59]} Qf7 {[%emt 0:04:51]} 36. Qxg4 {[%emt 0:00:44]} Rc1+ {[%emt 0:00:23]} (36... Re8 $16 37. Rf5 Qe7) 37. Kh2 {[%emt 0:00:21]} Rc4 {[%emt 0:00:21]} 38. Qg5 {[%emt 0:04:39]} Kh7 {[%emt 0:00:23]} 39. Re7 {[%emt 0:01:05]} Qf4+ {[%emt 0:01:14]} (39... Qg6 {was necessary.} 40. Ra7 Rb4) 40. Qxf4 {[%emt 0:00:22]} Rxf4 {[%emt 0:00:22] KR-KR} 41. Kg3 {[%emt 0:00:21]} Ra4 {[%emt 0:00:35] [#]} (41... Rf6 {was called for.} 42. Ra7 Rg6+ 43. Kh3 Rf6) 42. Ra7 $1 {[%emt 0:00:40]} a5 {[%emt 0:00:33]} 43. Ra6 {[%emt 0:00:56]} (43. f4 $142 Ra2 44. b3) 43... g6 $2 {[%emt 0:01:39]} (43... Ra2 44. b3 Kg8) 44. f4 {[%emt 0:00:37]} Ra2 {[%emt 0:01:25]} 45. b3 {[%emt 0:00:22]} Kh6 $2 {[%emt 0:01:20]} (45... Kg7 46. Kf3 a4 47. Ra7+ Kf6 48. Ra6+ Kg7 49. bxa4 Rxa4) 46. Kf3 {[%emt 0:01:20] Strongly threatening f5.} b4 {[%emt 0:02:13]} 47. g3 {[%emt 0:00:46]} (47. f5 Rb2 48. f6 (48. fxg6 Rxb3+ 49. Kf4 Rd3 $18) (48. Rxg6+ Kh7 $16) (48. Rxa5 Rxb3+ 49. Kf4 Ra3 $16) 48... Rxb3+ 49. Ke4 Rc3 50. Rxa5 Rc4+ 51. Ke3 Rc3+ 52. Kd4 Rc8 $18) 47... Ra3 {[%emt 0:00:24] [#]} 48. Kg4 $1 {[%emt 0:00:22]} Kg7 {[%emt 0:00:21]} 49. h5 {[%emt 0:01:09]} ({Not} 49. Ra7+ Kf6 $16) 49... gxh5+ {[%emt 0:00:23]} 50. Kh4 $2 {[%emt 0:00:22]} (50. Kxh5 $18 Rxb3 51. g4) 50... Kf7 $11 {[%emt 0:00:43] The position is equal.} ({Don't take} 50... Rxb3 51. Rxa5 Rb1 52. Kxh5 $16) 51. Kxh5 {[%emt 0:00:39] g4 is the strong threat.} Rxb3 {[%emt 0:00:21]} 52. Rxa5 {[%emt 0:00:30]} Rxg3 {[%emt 0:00:23]} 53. Rb5 {[%emt 0:00:24]} b3 {[%emt 0:00:27]} 54. Kh4 {[%emt 0:00:31]} Rc3 {[%emt 0:00:27]} 55. Kg5 {[%emt 0:00:28]} Ke7 {[%emt 0:00:28]} 56. f5 {[%emt 0:00:23]} Rg3+ {[%emt 0:00:23]} 57. Kf4 {[%emt 0:00:21]} Rh3 {[%emt 0:00:21]} 58. Ke5 {[%emt 0:00:27]} Re3+ {[%emt 0:00:22]} 59. Kf4 {[%emt 0:00:23]} Rh3 {[%emt 0:00:21]} 60. Ke5 {[%emt 0:00:25]} Re3+ {[%emt 0:00:22]} 61. Kf4 {[%emt 0:00:21]} Rh3 {[%emt 0:00:21] Black defended with fortune.  Weighted Error Value: White=0.25 (precise) /Black=0.33} 1/2-1/2

[Event "Super United Croatia GCT Rapid 2022"]
[Site "Zagreb"]
[Date "2022.07.20"]
[Round "2.4"]
[White "Nepomniachtchi, Ian"]
[Black "Firouzja, Alireza"]
[Result "1/2-1/2"]
[ECO "C54"]
[WhiteElo "2766"]
[BlackElo "2793"]
[Annotator "TA"]
[PlyCount "131"]
[EventDate "2022.07.20"]
[EventType "tourn"]
[EventCountry "CRO"]
[SourceTitle "playchess.com"]
[Source "ChessBase"]
[SourceQuality "1"]
[TimeControl "5400+30"]

{[%evp 12,131,22,3,9,12,17,0,0,0,0,14,14,13,9,0,14,11,11,4,19,7,26,9,16,11,16,0,0,0,0,0,0,0,0,0,0,-14,0,-70,-54,-68,-68,-105,-103,-95,-68,-105,-98,-102,-96,-101,-86,-101,-107,-180,-178,-172,-180,-175,-185,-179,-170,-180,-171,-171,-147,-167,-140,-121,-83,-83,-83,-53,-83,-83,-34,-34,-34,-34,-34,-83,-83,-83,-34,-83,-83,-114,-34,-34,-34,-53,-53,-53,-53,-53,-53,-53,-53,-29967,-53,-53,-53,-53,-53,-53,-53,-53,-53,-5481,0,-77,-34,-34,-34,-34,-34,-34,-34,-34,0,-34]} 1. e4 {[%emt 1:05:42]} e5 {[%emt 1:05:40]} 2. Nf3 {[%emt 0:00:21]} Nc6 {[%emt 0:00:21]} 3. Bc4 {[%emt 0:00:22]} Nf6 {[%emt 0:00:23]} 4. d3 {[%emt 0:00:21]} Bc5 {[%emt 0:00:23]} 5. O-O {[%emt 0:00:24]} d6 {[%emt 0:00:30]} 6. c3 {[%emt 0:00:21]} O-O {[%emt 0:00:30]} 7. Re1 {[%emt 0:00:26] now supersedes 7.Bb3.} a5 {[%emt 0:00:23] C54: Giuoco Piano: 4 c3 Nf6, main lines with 5 d4 and 5 d3.} 8. h3 {[%emt 0:00:23]} Ba7 {[%emt 0:00:23]} 9. Na3 {[%emt 0:00:22]} h6 {[%emt 0:00:39]} 10. Nb5 {[%emt 0:00:45]} Bb6 {[%emt 0:00:21]} 11. Be3 {[%emt 0:00:27]} Bxe3 {[%emt 0:00:22]} 12. Rxe3 {[%emt 0:00:22]} Re8 {[%emt 0:00:21] [#]} 13. Qb3 $146 {[%emt 0:00:58]} ({Predecessor:} 13. Qc2 Ne7 14. Qb3 Rf8 15. d4 Ng6 16. Rd1 Bd7 17. a4 Qc8 18. Nd2 Nh5 19. Nf3 {½-½ (59) Ragger,M (2643)-Jones,G (2665) Chartres 2022}) 13... Be6 {[%emt 0:01:07]} 14. Bxe6 {[%emt 0:00:32]} Rxe6 {[%emt 0:00:22]} 15. d4 {[%emt 0:00:26]} Re8 {[%emt 0:01:43]} 16. d5 {[%emt 0:00:50]} Ne7 {[%emt 0:01:20]} 17. c4 {[%emt 0:00:23]} Nd7 {[%emt 0:00:36][%cal Bf6d7,Bd7c5,Bc5e6,Be6d4][%mdl 32]} 18. Qc2 {[%emt 0:00:32]} Nc5 {[%emt 0:00:51]} 19. b3 {[%emt 0:00:37]} Rf8 {[%emt 0:00:34]} 20. Nh4 {[%emt 0:01:39]} c6 {[%emt 0:00:57]} 21. dxc6 {[%emt 0:01:24]} bxc6 {[%emt 0:00:21]} 22. Nc3 {[%emt 0:00:23]} Ne6 {[%emt 0:00:31]} 23. Qd2 {[%emt 0:00:45]} Nd4 {[%emt 0:03:25]} 24. Rg3 {[%emt 0:00:28]} Kh7 {[%emt 0:00:27]} 25. f4 {[%emt 0:00:29]} (25. Rd1 $11) 25... Ng6 $1 $15 {[%emt 0:01:09]} 26. Nxg6 {[%emt 0:01:28]} fxg6 {[%emt 0:00:21]} 27. fxe5 {[%emt 0:04:20]} dxe5 {[%emt 0:00:22][%cal Od4f3] Threatens to win with ...Nf3+!} 28. Rd3 {[%emt 0:00:28] Prevents Nf3+.} Qh4 {[%emt 0:00:56]} 29. Qe1 {[%emt 0:00:43]} Qe7 {[%emt 0:00:54]} 30. Rad1 {[%emt 0:00:36]} Rf4 {[%emt 0:00:22]} 31. Qe3 {[%emt 0:01:38]} Qg5 {[%emt 0:06:02]} 32. Kh2 {[%emt 0:03:02]} Raf8 {[%emt 0:00:25]} 33. R1d2 {[%emt 0:00:21] [#]} (33. Ne2 $17 Nxe2 34. Qxe2) 33... Qh5 $1 $19 {[%emt 0:01:21][%cal Od4f3]} 34. Ne2 {[%emt 0:04:16] [#]} Nf3+ $1 {[%emt 0:00:26][%mdl 512]} 35. gxf3 {[%emt 0:00:22]} Rxf3 {[%emt 0:00:21]} 36. Ng3 {[%emt 0:00:22]} Rxe3 {[%emt 0:00:27]} 37. Nxh5 {[%emt 0:00:22]} Rxd3 {[%emt 0:00:24]} 38. Rxd3 {[%emt 0:00:22]} gxh5 {[%emt 0:00:23][%mdl 4096] Endgame KR-KR} 39. Kg1 {[%emt 0:02:37] Against Rf2} Rf4 {[%emt 0:02:17]} 40. Rd6 {[%emt 0:00:21]} Rxe4 {[%emt 0:00:25]} 41. Rxc6 {[%emt 0:00:22]} Re2 {[%emt 0:00:27]} 42. Rc5 {[%emt 0:02:03]} Rxa2 {[%emt 0:00:24] White must now prevent ...e4.} 43. Rxe5 {[%emt 0:00:23]} h4 {[%emt 0:05:29]} (43... Kg6 $17 44. Rb5 a4 45. bxa4 Rxa4) 44. Rb5 $15 {[%emt 0:01:26]} a4 {[%emt 0:02:27]} 45. bxa4 {[%emt 0:00:39]} Rxa4 {[%emt 0:00:22]} 46. Rc5 {[%emt 0:00:28]} (46. c5 $15) 46... Ra3 {[%emt 0:01:41]} 47. Kg2 {[%emt 0:00:27]} Kg6 {[%emt 0:00:25]} (47... Rg3+ $17 48. Kh2 Rc3) 48. Rc7 {[%emt 0:00:29]} (48. Rb5 $15 {was preferrable.}) 48... Rg3+ {[%emt 0:02:15]} 49. Kh2 {[%emt 0:00:21]} Kf5 {[%emt 0:01:17]} ({Better is} 49... Rc3 $17 50. c5 Rc2+ 51. Kg1 Rc4) 50. c5 {[%emt 0:00:29]} g5 {[%emt 0:00:25]} 51. Rc6 {[%emt 0:03:32]} h5 {[%emt 0:00:23] Hoping for ...g4.} 52. Rh6 {[%emt 0:00:22]} Rc3 {[%emt 0:00:34]} 53. Rxh5 {[%emt 0:02:03]} Kf4 {[%emt 0:00:25]} 54. Kg2 {[%emt 0:00:42]} Rc2+ {[%emt 0:00:46]} 55. Kg1 {[%emt 0:00:21][%cal Oc5c6]} Rxc5 {[%emt 0:00:32]} 56. Kg2 {[%emt 0:00:22]} Rc2+ {[%emt 0:00:42]} 57. Kg1 {[%emt 0:00:25]} Ra2 {[%emt 0:00:44]} 58. Kh1 $1 {[%emt 0:00:22]} Ra5 {[%emt 0:00:50] ( -> ...Kg3)} 59. Kg2 {[%emt 0:00:21]} Rb5 {[%emt 0:00:33]} 60. Kf2 $1 {[%emt 0:00:40]} Rc5 $2 {[%emt 0:00:30]} (60... Rb3 $19 {and Black stays clearly on top.} 61. Kg2 Rg3+ 62. Kh2 Ra3) 61. Kg2 $17 {[%emt 0:00:24]} Ke3 {[%emt 0:00:32]} 62. Rh8 {[%emt 0:00:42]} Rc2+ {[%emt 0:00:25]} 63. Kg1 {[%emt 0:00:41]} Kf3 {[%emt 0:00:31] And now ...Kg3 would win.} 64. Rg8 {[%emt 0:01:02]} Rc1+ {[%emt 0:00:25]} 65. Kh2 {[%emt 0:00:22]} Rc2+ {[%emt 0:00:21]} 66. Kg1 {[%emt 0:00:22] Weighted Error Value: White=0.10 (very precise) /Black=0.21 (precise)} 1/2-1/2

[Event "Super United Croatia GCT Rapid 2022"]
[Site "Zagreb"]
[Date "2022.07.20"]
[Round "2.5"]
[White "Topalov, Veselin"]
[Black "Carlsen, Magnus"]
[Result "0-1"]
[ECO "B11"]
[WhiteElo "2728"]
[BlackElo "2864"]
[Annotator "TA"]
[PlyCount "156"]
[EventDate "2022.07.20"]
[EventType "tourn"]
[EventCountry "CRO"]
[SourceTitle "playchess.com"]
[Source "ChessBase"]
[SourceQuality "1"]
[TimeControl "5400+30"]

{[%evp 11,156,13,12,22,23,30,22,8,26,20,33,27,28,38,39,36,36,29,40,34,39,28,39,0,0,-6,-14,-18,-9,-41,-49,-40,-45,-41,-50,-61,-51,-66,-51,-51,-58,-61,-47,-75,-42,-64,-64,-80,-37,-43,-29,-43,-33,-68,-58,-103,-75,-83,-20,-21,-25,-20,-28,-20,-20,-22,-14,-24,-20,-77,-25,-37,-31,-150,-37,-105,-105,-111,-77,-80,-62,-30,0,-52,0,0,0,-38,-36,-54,-57,-203,-195,-211,-139,-218,-218,-227,-203,-592,-517,-1290,-1258,-1181,-834,-846,-1634,-1427,-1252,-1499,-266,-335,-207,-207,-100,-6119,0,-207,-207,-12851,-10460,-29951,-29954,-29950,-29952,-29955,-29949,-29952,-29957,-29960,-12850,-29959,-29937,-29962,-29963,-29961,-29960,-29966,-29967,-29970,-29970,-29970,-29971,-29969,-29970,-29967,-6199]} 1. e4 {[%emt 1:05:47]} c6 {[%emt 1:05:43]} 2. Nc3 {[%emt 0:01:00]} d5 {[%emt 0:00:23]} 3. Nf3 {[%emt 0:00:21]} Bg4 {[%emt 0:00:52]} 4. h3 {[%emt 0:00:22]} Bxf3 {[%emt 0:00:22]} 5. Qxf3 {[%emt 0:00:22]} Nf6 {[%emt 0:01:35]} 6. d4 {[%emt 0:00:45]} e6 {[%emt 0:00:48]} 7. exd5 {[%emt 0:00:25] B11: Caro-Kann: Two Knights Variation.} cxd5 {[%emt 0:00:29]} 8. Bd3 {[%emt 0:00:22]} Nc6 {[%emt 0:01:14]} 9. Ne2 {[%emt 0:00:22] The position is equal.} Nb4 $5 {[%emt 0:01:44][%mdl 4] Leaves trodden paths.} 10. Bb5+ {[%emt 0:00:46]} Nd7 {[%emt 0:00:21]} 11. Ba4 {[%emt 0:00:26]} b5 {[%emt 0:00:40]} 12. Bb3 {[%emt 0:00:30]} Nc6 {[%emt 0:00:52]} 13. c3 {[%emt 0:00:25]} Bd6 {[%emt 0:00:41]} 14. O-O {[%emt 0:00:55] [#]} Rc8 $146 {[%emt 0:00:48]} ({Predecessor:} 14... Qf6 15. Qd3 Rb8 16. f4 g6 17. g4 h5 18. g5 Qd8 19. h4 Ne7 20. Ng3 Qc7 {0-1 (50) Iglesias Ferreira,A (2146)-Buendia Pinar,A (2295) La Roda 2022}) 15. Qg4 {[%emt 0:03:24]} O-O {[%emt 0:02:23]} 16. Bh6 {[%emt 0:02:37][%csl Gh6][%cal Rg4g7]} Qf6 {[%emt 0:00:21]} 17. Be3 {[%emt 0:01:39]} Qg6 {[%emt 0:00:57]} 18. Nf4 {[%emt 0:01:14]} Qxg4 {[%emt 0:00:27]} 19. hxg4 {[%emt 0:00:21]} b4 {[%emt 0:00:23]} 20. Nd3 {[%emt 0:02:12]} bxc3 {[%emt 0:00:26]} 21. bxc3 {[%emt 0:00:21]} Na5 {[%emt 0:00:29][%cal Bc6a5,Ba5c4,Bc4a3][%mdl 32]} 22. Rfc1 {[%emt 0:00:28]} Rc7 {[%emt 0:00:29]} 23. Rab1 {[%emt 0:00:58]} Rfc8 {[%emt 0:01:58]} 24. Bd2 {[%emt 0:00:29]} Nb6 {[%emt 0:01:59]} ({Of course not} 24... Nxb3 25. axb3 Rb7 26. b4 $11) 25. Be1 {[%emt 0:00:49]} Nac4 {[%emt 0:01:05]} 26. Bd1 {[%emt 0:01:43]} h6 {[%emt 0:00:41]} (26... Na3 $5 {[%cal Ra3b1]} 27. Rb2 h6 $15) 27. g3 {[%emt 0:00:52]} Nd7 {[%emt 0:01:46]} (27... Na3 $5 {[%cal Ra3b1]} 28. Rb2 Nbc4 $17) 28. Rb3 {[%emt 0:01:53]} Nf6 {[%emt 0:00:33]} 29. Rcb1 {[%emt 0:00:27]} Na3 {[%emt 0:02:31]} 30. Rc1 {[%emt 0:01:41]} Nd7 {[%emt 0:01:52]} 31. Kf1 {[%emt 0:02:47]} Nb6 {[%emt 0:01:37]} 32. Rb2 {[%emt 0:01:03]} Nbc4 {[%emt 0:00:38] Pair of Knights!} 33. Rb3 {[%emt 0:00:38]} Be7 {[%emt 0:01:07] Black is much more active.} 34. Be2 {[%emt 0:01:58]} Bg5 {[%emt 0:00:52]} (34... Na5 $17 35. Rb2 Ra8) 35. Rd1 $11 {[%emt 0:00:25]} Nc2 {[%emt 0:01:55]} 36. Nc5 {[%emt 0:02:14]} Nxe1 {[%emt 0:00:22]} 37. Kxe1 {[%emt 0:00:37]} Nb6 {[%emt 0:01:04]} 38. Ba6 {[%emt 0:00:31]} Rd8 {[%emt 0:00:40]} 39. Bb5 {[%emt 0:00:44]} Be7 {[%emt 0:00:31]} 40. Nd3 {[%emt 0:00:25]} (40. Na6 $1 $11 Rcc8 41. Ke2) 40... g6 {[%emt 0:01:52]} ({Black should try} 40... Nc4 $17 41. Ba4 Rdc8) 41. Ke2 {[%emt 0:00:43]} Nc4 {[%emt 0:00:55][%cal Bb6c4,Bc4d6,Bd6e4][%mdl 32]} 42. Rc1 {[%emt 0:00:27]} (42. Ba6 $15) 42... Kg7 {[%emt 0:00:45]} (42... Na5 $1 $17 43. Rbb1 Ba3) 43. Rbb1 {[%emt 0:01:14]} (43. Nb4 $15) 43... Nd6 $17 {[%emt 0:01:04]} 44. Ne5 {[%emt 0:02:04]} Ne4 {[%emt 0:01:39]} 45. c4 {[%emt 0:00:25]} dxc4 {[%emt 0:00:53]} 46. Nc6 {[%emt 0:01:50]} Rd5 {[%emt 0:01:54][%cal Od5b5]} 47. Bxc4 {[%emt 0:00:58]} (47. Nxe7 $11 Rxe7 48. Bc6) 47... Rxc6 {[%emt 0:00:21]} ({Better is} 47... Rd6 $1 $15 48. Nxe7 Rxe7) 48. Bxd5 $11 {[%emt 0:00:21]} Rxc1 {[%emt 0:00:22]} 49. Bxe4 {[%emt 0:00:22][%mdl 4096] Endgame KRB-KRB} (49. Rxc1 $5 {[%cal Rd5e4]} exd5 50. Rc7 $17) 49... Rc4 {[%emt 0:00:21]} 50. Rb7 {[%emt 0:00:45]} Rxd4 {[%emt 0:00:41]} 51. Bxg6 {[%emt 0:00:48]} (51. f3 $15 Bc5 52. Bc6) 51... Kxg6 $19 {[%emt 0:00:43]} 52. Rxe7 $15 {[%emt 0:00:22] KR-KR} a5 {[%emt 0:00:25][%cal Ba7a5,Ba5a4,Ba4a3,Ba3a2][%mdl 32]} ({Not} 52... Rxg4 53. Rxa7 Kf6 54. a4 $14) 53. f4 {[%emt 0:00:24]} (53. Rc7 $17) 53... Ra4 $19 {[%emt 0:00:22]} 54. Kf3 {[%emt 0:00:24]} Ra3+ {[%emt 0:00:22]} 55. Kg2 $2 {[%emt 0:00:22]} (55. Ke4 {is more resistant.}) 55... Rxa2+ {[%emt 0:00:22]} 56. Kh3 {[%emt 0:00:21]} (56. Kf3 $142 a4 57. Ra7) 56... a4 {[%emt 0:01:08]} 57. Ra7 {[%emt 0:00:43]} a3 {[%emt 0:00:23] Strongly threatening ...Ra1.} 58. Ra5 {[%emt 0:00:50]} Ra1 {[%emt 0:00:52]} 59. Kg2 {[%emt 0:00:21]} a2 {[%emt 0:00:27]} 60. g5 {[%emt 0:01:08]} h5 $2 {[%emt 0:00:42]} (60... hxg5 61. Rxg5+ Kf6) 61. Kh2 {[%emt 0:00:23]} h4 {[%emt 0:00:26] aiming for ...hxg3+.} 62. g4 {[%emt 0:00:35] [#]} Kg7 {[%emt 0:00:32]} (62... Rf1 $1 $19 {has better winning chances.} 63. f5+ exf5 64. gxf5+ Kxg5 65. f6+ Rf5 66. Rxa2 Rf3) 63. Ra7 $2 {[%emt 0:00:25][%mdl 8192]} (63. Ra6 $17) 63... Kg6 $2 {[%emt 0:00:33]} (63... e5 $1 {[%cal Re5f4]} 64. fxe5 Kg6) 64. Ra5 $1 {[%emt 0:00:40] [#]} Rf1 $1 {[%emt 0:00:36]} 65. Rxa2 $2 {[%emt 0:00:21]} (65. f5+ exf5 66. gxf5+ Kxg5 67. Rxa2) 65... Rxf4 {[%emt 0:00:21]} 66. Kh3 {[%emt 0:00:21]} Kxg5 {[%emt 0:00:22]} 67. Ra5+ {[%emt 0:00:20]} f5 {[%emt 0:00:23]} 68. gxf5 {[%emt 0:00:21]} Rf3+ {[%emt 0:00:22]} 69. Kh2 {[%emt 0:00:21]} Rxf5 {[%emt 0:00:22]} 70. Ra8 {[%emt 0:00:23]} Rf4 {[%emt 0:00:39]} (70... e5 $142 71. Ra4 Rf2+ 72. Kg1 Rf4 73. Ra5 Kf6 74. Ra6+ Kf5 75. Kg2 e4 76. Ra3 Rg4+ 77. Kf2 Rg5 78. Kf1 Kg4 79. Kf2 Rf5+ 80. Kg1 Re5 81. Re3 Kf4 82. Kf2 Re6 83. Re1 e3+ 84. Ke2 h3 85. Rf1+ Kg4 86. Rg1+ Kh4 87. Kf3 e2 88. Re1 h2 89. Kg2 Kg4 90. Kf2 Re8 91. Rh1 e1=R 92. Rxe1 Rxe1 93. Kxe1 h1=Q+ 94. Kd2 Qc6 95. Kd3 Qc5 96. Kd2 Kg3 97. Kd3 Kf3 98. Kd2 Qc4 99. Kd1 Ke3 100. Ke1 Qe2#) 71. Kh3 {[%emt 0:00:05]} Kf5 {[%emt 0:00:27] Black mates.} 72. Ra5+ {[%emt 0:01:19]} e5 {[%emt 0:00:22][%cal Be6e5,Be5e4,Be4e3][%mdl 32]} 73. Rb5 {[%emt 0:00:22]} Ra4 {[%emt 0:00:29]} 74. Rb8 {[%emt 0:00:30]} Kf4 {[%emt 0:00:40]} 75. Kxh4 {[%emt 0:00:27]} e4 {[%emt 0:00:45]} 76. Kh3 {[%emt 0:00:26]} Kf3 {[%emt 0:00:25]} 77. Rf8+ {[%emt 0:00:31]} Ke2 {[%emt 0:00:21]} 78. Kg2 {[%emt 0:00:21]} e3 {[%emt 0:00:26] Weighted Error Value: White=0.39/Black=0.27 (precise)} 0-1